Cogmind - Beta 11 @@@ ROGUE MODE // 2022.06.24 @ 12:26:53 Player: CreepyD Result: Destroyed by 8R-AWN with 8R-AWN's Boregun Performance ------------- Evolutions (0) 0 Regions Visited (1) 200 Robots Destroyed (9) 45 Value Destroyed (116) 116 Prototype IDs (2) 40 Alien Tech Used (0) 0 Bonus (-9) -9 TOTAL SCORE: 392 Bonus ------- Friendly Fire -9 Cogmind --------- Core Integrity 0/250 Matter 46/300 Energy 49/100 System Corruption 2% Temperature Cool (0) Movement Walking (190) Ox1 Location -10/Materials Parts ------- > --- POWER (1) -------- (None) > --- PROPULSION (2) --- Aluminum Leg > --- UTILITY (2) ------ Medium Storage Unit Improved Targeting Computer > --- WEAPON (2) ------- Heavy EM Pulse Gun > --- INVENTORY (10) --- Wheel Wheel Heavy EM Pulse Gun Heavy EM Pulse Gun Heavy EM Pulse Gun Peak State ------------ > --- POWER ------------ Light Ion Engine > --- PROPULSION ------- Aluminum Leg Aluminum Leg > --- UTILITY ---------- Medium Storage Unit Improved Targeting Computer > --- WEAPON ----------- Assault Rifle Grenade Launcher > --- INVENTORY -------- Wheel Wheel [Rating: 8] Favorites ----------- Power Light Ion Engine Engine Light Ion Engine Propulsion Aluminum Leg Leg Aluminum Leg Utility Medium Storage Unit Storage Medium Storage Unit Processor Targeting Computer Weapon Assault Rifle Energy Gun Heavy EM Pulse Gun Ballistic Gun Assault Rifle Launcher Grenade Launcher Build | -11 -10 ------- Run | Scr Mat Slots Evolved . | . . Power . | . . Propulsion . | . . Utility . | . . Weapon . | . . Parts Attached 11 | 6 5 Power 1 | 1 . Engine 1 | 1 . Core . | . . Reactor . | . . Propulsion 2 | 2 . Treads . | . . Leg 2 | 2 . Wheel . | . . Hover . | . . Flight . | . . Utility 4 | 1 3 Device . | . . Storage 2 | 1 1 Processor 2 | . 2 Hackware . | . . Protection . | . . Artifact . | . . Weapon 4 | 2 2 Energy Gun 1 | . 1 Energy Cannon . | . . Ballistic Gun 2 | 2 . Ballistic Cannon . | . . Launcher 1 | . 1 Special Weapon . | . . Impact Weapon . | . . Slashing Weapon . | . . Piercing Weapon . | . . Special Melee Weapon . | . . Unidentified Prototypes . | . . Parts Lost 3 | . 3 Power 1 | . 1 Propulsion 1 | . 1 Utility . | . . Weapon 1 | . 1 Highest Loss Streak 3 | . 3 To Critical Strikes 2 | . 2 Average Slot Usage (%) 92 | . 92 Engine 11 | . 11 Leg 28 | . 28 Storage 14 | . 14 Processor 10 | . 10 Energy Gun 1 | . 1 Ballistic Gun 16 | . 16 Launcher 8 | . 8 Naked Turns . | . . Heaviest Build 18 | 11 18 Greatest Support 20 | 20 20 Greatest Overweight (x) 1 | . 1 Average Overweight (x) . | . . Largest Inventory Capacity 10 | 8 10 Average Capacity 8 | 5 9 Most Carried 5 | 4 5 Average Carried 2 | 1 2 Final Capacity 10 | 8 10 Final Carried 5 | 2 5 Class Distribution -------------------- 100% | Mutant Dominant Class ---------------- Mutant | -10/Materials Resources | -11 -10 ----------- Run | Scr Mat Matter Collected 378 | 260 118 Remotely . | . . Salvage Created 269 | 93 176 Parts 11 | 3 8 Haulers Intercepted 1 | . 1 Recyclers Shooed . | . . Parts Field Recycled . | . . Retrieved Matter . | . . Parts Self-Destructed . | . . Prevented . | . . Kills | -11 -10 ------- Run | Scr Mat Combat Hostiles Destroyed 2 | . 2 Guns 1 | . 1 AOE 1 | . 1 Classes Destroyed 7 | 2 5 Worker 2 | . 2 Builder 1 | . 1 Tunneler 1 | 1 . Hauler 1 | . 1 Recycler 1 | 1 . Watcher 1 | . 1 Grunt 2 | . 2 Best Kill Streak 5 | 2 5 Combat Bots Only 1 | . 1 Max Kills in Single Turn 1 | 1 1 Gunslinging . | . . Exploded 1 | . 1 Melee . | . . Uniques/NPCs Destroyed . | . . Combat | -11 -10 -------- Run | Scr Mat Damage Taken 667 | . 667 Core 255 | . 255 Absorbed by Shields . | . . Core Remaining (%) 100 | 100 . Volleys Fired 41 | 5 36 Largest 2 | 2 2 Hottest 65 | 40 65 Shots Fired 76 | 10 66 Gun 54 | 10 44 Cannon . | . . Launcher 22 | . 22 Special . | . . Kinetic 47 | 10 37 Thermal . | . . Explosive 22 | . 22 Electromagnetic 7 | . 7 Robot Hit Streak 12 | 9 12 Robot Miss Streak 3 | . 3 Penetration Max . | . . Secondary Targets . | . . Shots Hit Robots 57 | 9 48 Core Hits 22 | 3 19 Critical Kills . | . . Critical Parts Destroyed . | . . Critical Strikes . | . . Melee Attacks . | . . Impact . | . . Slashing . | . . Piercing . | . . Sneak Attacks . | . . Combat Hostiles . | . . Follow-up Attacks . | . . Damage Inflicted 676 | 95 581 Guns 377 | 95 282 Cannons . | . . Explosions 299 | . 299 Melee . | . . Ramming . | . . Kinetic 372 | 95 277 Thermal . | . . Explosive 299 | . 299 Electromagnetic 5 | . 5 Impact . | . . Slashing . | . . Piercing . | . . Highest Corruption 2 | . 2 Average Corruption 2 | . 2 Corruption Purged . | . . Corruption Blocked . | . . Effects 1 | . 1 Data Loss (minor) 1 | . 1 Overload Shots . | . . Overflow Damage . | . . Projectiles . | . . Explosions . | . . Melee . | . . Knockbacks . | . . Impact . | . . Kinetic . | . . Secondary . | . . Self-Inflicted Damage 19 | . 19 Shots 1 | . 1 Rammed . | . . Targets Rammed . | . . Kicked . | . . Crushed . | . . Highest Temperature 6 | . 6 Average Temperature 3 | . 3 Received Heat Transfer 24 | . 24 Siege Activations . | . . Robots Corrupted . | . . Combat Hostiles . | . . Parts Fried . | . . Impact Corruptions . | . . Robots Melted . | . . Combat Hostiles . | . . Parts Melted . | . . Heat Transferred . | . . Parts Sabotaged . | . . Parts Stolen . | . . Parts Stripped . | . . Power Chain Reactions . | . . Missiles Intercepted . | . . Alert | -11 -10 ------- Run | Scr Mat Peak Influence 152 | 10 152 Initial 6 | . 6 Average 52 | 2 66 Maximum Alert Level . | . . Low Security (%) 100 | 100 100 Level 1 . | . . Level 2 . | . . Level 3 . | . . Level 4 . | . . Level 5 . | . . High Security . | . . Max Security . | . . Squads Dispatched 1 | . 1 Investigation 1 | . 1 Extermination . | . . Reinforcement . | . . Assault . | . . Garrison . | . . Intercept . | . . Searches Triggered . | . . Construction Impeded . | . . Haulers Reinforced . | . . Active Scanning Responses . | . . Cargo Convoy Interrupts . | . . Stealth | -11 -10 --------- Run | Scr Mat Distress Signals 1 | . 1 Communications Jammed . | . . Distress Signals . | . . Times Spotted 5 | . 5 Peak Tracking Total 3 | . 3 Tactical Retreats . | . . Traps | -11 -10 ------- Run | Scr Mat Traps Triggered 2 | . 2 Indirectly . | . . Trap Hack Attempts . | . . Triggered . | . . Disarmed . | . . Reprogrammed . | . . Reused . | . . Traps Extracted . | . . Installed . | . . Triggered . | . . Machines | -11 -10 ---------- Run | Scr Mat Machines Disabled 1 | . 1 Max in Single Turn 1 | . 1 Machines Sabotaged . | . . Garrisons Compromised . | . . Overloaded Fab Kills . | . . Hacking | -11 -10 --------- Run | Scr Mat Machines Accessed 2 | . 2 Terminals 2 | . 2 Fabricators . | . . Repair Stations . | . . Recycling Units . | . . Scanalyzers . | . . Garrison Access . | . . Total Hacks 6 | . 6 Successful 4 | . 4 Failed 2 | . 2 Catastrophic . | . . Database Lockouts . | . . Manual 2 | . 2 Terminals 6 | . 6 Fabricators . | . . Repair Stations . | . . Recycling Units . | . . Scanalyzers . | . . Garrison Access . | . . Terminal Hacks 4 | . 4 Prototype ID Bank 1 | . 1 Branch Access Points 1 | . 1 Alert Level 1 | . 1 Unreport Threat 1 | . 1 Fabricator Hacks . | . . Repair Station Hacks . | . . Recycling Unit Hacks . | . . Scanalyzer . | . . Garrison Access Hacks . | . . Unauthorized Hacks . | . . Terminals . | . . Fabricators . | . . Repair Stations . | . . Recycling Units . | . . Scanalyzers . | . . Garrison Access . | . . Data Cores Recovered . | . . Used . | . . Hacking Detections . | . . Full Trace Events . | . . Feedback Events . | . . Feedback Blocked . | . . Robot Schematics Acquired . | . . Robots Built . | . . Authchips . | . . Time . | . . Total Robot Build Rating . | . . Part Schematics Acquired . | . . Parts Built . | . . Authchips . | . . Time . | . . Total Part Build Rating . | . . Parts Repaired . | . . Time . | . . Parts Recycled . | . . Recycled Matter . | . . Retrieved Matter . | . . Retrieved Components . | . . Parts Scanalyzed . | . . Part Schematics Acquired . | . . Parts Damaged . | . . Bothacking | -11 -10 ------------ Run | Scr Mat Used RIF Installer . | . . Robots Hacked . | . . Non-combat . | . . Combat . | . . Robot Hacks Applied . | . . Relay Couplers Released . | . . Fabnet Peak Effective % . | . . Robots Rewired . | . . Allies Hacked . | . . Hacks Repelled . | . . Allies | -11 -10 -------- Run | Scr Mat Total Allies . | . . Largest Group . | . . Highest-Rated Group . | . . Highest-Rated Ally . | . . Total Orders . | . . Ally Attacks . | . . Total Damage . | . . Kills . | . . Allies Corrupted . | . . Allies Melted . | . . Intel | -11 -10 ------- Run | Scr Mat Robot Analysis Total . | . . Derelict Logs Recovered . | . . Drone Launches . | . . Drone Recoveries . | . . Exploration | -11 -10 ------------- Run | Scr Mat Turns Passed 357 | 80 277 Spaces Moved 175 | 44 131 Core 13 | 13 . Treads . | . . Legs 162 | 31 131 Wheels . | . . Hover . | . . Flight . | . . Fastest Speed 50 | 50 120 Average Speed 115 | 99 121 Slowest Speed 190 | 120 190 Overloaded Moves . | . . Propulsion Burnouts . | . . Robots Hopped . | . . Cave-ins Triggered . | . . Exploration Rate (%) 16 | 3 29 Regions Visited 1 Branch Regions . Pre-discovered Areas . | . . Known Exits Taken . | . . Unknown Exits Taken 1 | 1 . Scrap Searched . | . . Spaces Dug . | . . Terrain Destroyed 17 | . 17 Melee . | . . Projectile . | . . AOE 17 | . 17 Terrain Rammed . | . . Walls Destroyed . | . . Machines Disabled . | . . Actions | -11 -10 --------- Run | Scr Mat Total 257 | 71 186 Wait 12 | 9 3 Move 174 | 43 131 Hop . | . . Pick Up 16 | 8 8 Fast Attach . | . . Attach 10 | 6 4 Detach . | . . Swap 1 | . 1 Drop 3 | . 3 Fire 41 | 5 36 Melee . | . . Ram . | . . Kick . | . . Crush . | . . Escape Stasis . | . . Rewire . | . . Trap . | . . Miscellaneous . | . . Route ------- -11/Scrapyard -10/Materials (discovered 2 exits: *Min x2) History --------- Turn | Location | Event 10 | -11/Scrapyard | Discovered new exit (range 14) 81 | -11/Scrapyard | Entered Materials 165 | -10/Materials | Identified exit to Mines 226 | -10/Materials | Met 8R-AWN 232 | -10/Materials | Attacked by 8R-AWN 308 | -10/Materials | Core integrity fell below 50% 315 | -10/Materials | Build established: Mutant 350 | -10/Materials | Core integrity fell below 20% 358 | -10/Materials | Destroyed by 8R-AWN with 8R-AWN's Boregun Last Messages --------------- 00345_ HV Slug penetrates Wall. 00345_ Penetrated by HV Slug. 00345_ HV Slug penetrates Wall. 00345_ U-05 Engineer lays Concrete. 00349_ Penetrated by HV Slug. 00349_ HV Slug penetrates Wall. 00349_ Penetrated by HV Slug. 00349_ HV Slug penetrates Wall. 00349_ U-05 Engineer lays Concrete. 00350_ Acquired 20 matter. 00351_ U-05 Engineer lays Concrete. 00352_ Acquired 20 matter. 00352_ U-05 Engineer lays Concrete. 00353_ Penetrated by HV Slug. 00353_ Aluminum Leg destroyed. 00353_ HV Slug penetrates Wall. 00353_ Penetrated by HV Slug. 00353_ HV Slug penetrates Wall. 00354_ U-05 Engineer lays Concrete. 00358_ Penetrated by HV Slug. Map ----- +----------------------------------------------------+ | | | | | | | | | ?????????????????????????????????????????????????? | | ?????????????????????????????????????????????????? | | ?????????????????????????????????????????????????? | | ?????????????????????????????????????????????????? | | ?????????????????????????????????????????????????? | | ?????????#####???????????????????????????????????? | | ???????###"""###?????????????????????????????????? | | ???????#""!!!""#?????????????????????????????????? | | ???????#" "#?????????????????????????????????? | | ???????# #?????????????????????????????????? | | ???????# > #?????????????????????????????????? | | ???????# #?????????????????????????????????? | | ???????# ??????????????????????????????????? | | ????????# #####??????????????????????????????? | | ?????????# ## ####???????????????????????????? | | ?????????# T ####??????????????????????????? | | ?????????# +??????????????????????????? | | ?????????# ####??????????????????????????? | | ????????## " #???????????????????????????? | | ????????# " u ####????????????????????????? | | ????????# "" ####### "" ??????????? | | ????????# @% ????????? | | ????????# ####### = #????????????? | | ????????# ug ####????????????????????????? | | ????????# #### #???????????????????????????? | | ????????# #?# !|| [# #?????????????????????????? | | ????????# #?# #!!|| "#??????????????????????????? | | ????????# #?#?#""##### #?????????????????????????? | | ????????# #???# # ????# #????????????????????????? | | ????????# #???# # ????# #####???????????????????? | | ????????# #???# # ##????#" ???????????????????? | | ????????# #####"##???????# ""??????????????????? | | ????????# # ! #???????# """?????????????????? | | ????????# # " #???##### """#????????????????? | | ????????# #! T ##### # #????????????????? | | ????????# # " + # """#????????????????? | | ????????# # ##### # """#????????????????? | | ????????# # #???# # """#????????????????? | | ??????### ####+"###### # #????????????????? | | ??????# ! # """#????????????????? | | ??????# # """#????????????????? | | ??????# !! + """#????????????????? | | ??????###+###% !! # #????????????????? | | ????????????# [ """ ########????????????????? | | ????????????# """ #??????????????????????? | | ????????????# """ #??????????????????????? | +----------------------------------------------------+ Best States ------------- Heat Dissipation 25 Energy Generation 10 Energy Capacity 125 Matter Stores 300 Matter Capacity 300 Sight Range 16 Terrain Scan Density 10 Evasion (%) 55 Targeting Accuracy 6 Item Schematics ----------------- None Robot Schematics ------------------ None Fabricated ------------ Nothing Alien Tech Used ----------------- None Achievements -------------- None Challenges ------------ None Game ------ Seed DisruptorEnergyNeutralizer Manual? 0 Play Time 00:05:45 Cumulative 131.6 hours Start 2022.06.24 @ 09:36:26 End 2022.06.24 @ 12:26:53 Sessions 1 Manual Loads 0 Difficulty Rogue Special Mode None Game No. 124 Rogue 123 Adventurer 1 Explorer 0 Win Type - Total 1 Types 1/0/0/0/0/0/0/0/0 Lore% 45 Gallery% 63 Achievement% 47 Wizard Run 0 Options --------- ASCII 0 Keyboard 0 Movement Mouse Keybinds 0 Fullscreen 0 Font 18/SmallcapsGlow Map View 76x50 Tactical HUD 1 Map Filters NONE Filters NONE Steam X RUN: ee7ed5df-3cab-40ef-9835-72b3a28757e7